bitfinex/quotes_ETHUSD_20230116
["timestamp","ask_amount","ask_price","bid_price","bid_amount"]
[1673868091738,45.23578825,1545.8,1545.7,0.06695038]
[1673868091929,38.28094825,1545.8,1545.7,0.06695038]
[1673868092145,39.24218069,1545.8,1545.7,0.06695038]
[1673868092362,40.68404362,1545.8,1545.7,0.06695038]
[1673868092734,37.41125684,1545.8,1545.7,0.06695038]
[1673868093114,31.29979722,1545.8,1545.7,0.06695038]
[1673868093271,32.74167693,1545.8,1545.7,0.06695038]
[1673868093483,24.83065722,1545.8,1545.6,0.10616446]
[1673868093820,24.83065722,1545.8,1545.5,13.04516386]
[1673868093821,21.58065722,1545.8,1545.5,17.9384887]
[1673868094232,13.0455025,1545.8,1545.5,19.1854887]
[1673868094483,8.0455025,1545.8,1545.6,1.253]
[1673868095036,8.0455025,1545.8,1545.6,14.19254]
[1673868095838,8.0455025,1545.8,1545.6,20.66251]
[1673868096028,8.0455025,1545.8,1545.6,23.375782]
[1673868096764,8.0455025,1545.8,1545.6,16.905812]
[1673868096974,8.0455025,1545.8,1545.6,14.19254]
[1673868097427,9.00754628,1545.8,1545.6,7.72263]
[1673868097640,8.0455025,1545.8,1545.6,7.72263]
[1673868098093,8.0455025,1545.8,1545.5,7.74838305]
[1673868098393,23.38889045,1545.8,1545.4,15.33148873]
[1673868098586,0.80455025,1545.7,1545.4,15.33148873]
[1673868099348,1.76683921,1545.7,1545.4,15.33148873]
[1673868099652,7.27412025,1545.7,1545.4,15.33148873]
[1673868099808,8.23640313,1545.7,1545.4,15.33148873]
[1673868100720,0.96228288,1545.7,1545.5,1.255]
[1673868100875,0.96228288,1545.7,1545.6,7.72697]
[1673868101099,0.96228288,1545.7,1545.6,20.66691]
[1673868103118,1.79872502,1545.8,1545.6,20.66691]
[1673868103297,0.35768038,1545.8,1545.6,20.66691]
[1673868103920,0.35768038,1545.8,1545.6,22.733601]
[1673868104132,0.35768038,1545.8,1545.7,20.66568]
[1673868104348,0.35768038,1545.8,1545.7,20.6797692]
[1673868105308,1.92624221,1545.9,1545.7,20.6797692]
[1673868105530,1.92624221,1545.9,1545.8,1.253]
[1673868105692,1.92624221,1545.9,1545.7,14.2032092]
[1673868106147,3.37140007,1545.9,1545.7,14.2032092]
[1673868106950,1.92624221,1545.9,1545.7,14.2032092]
[1673868107165,0.96361156,1545.8,1545.7,14.2032092]
[1673868108021,0.96361156,1545.8,1545.7,14.18912]
[1673868109213,0.96375967,1545.8,1545.7,14.18912]
[1673868109957,0.96375967,1545.8,1545.7,14.19212]
[1673868110107,0.96375967,1545.8,1545.7,7.72256]
[1673868111067,2.41038787,1545.8,1545.7,14.64808678]
[1673868111280,0.96375967,1545.8,1545.7,27.59103817]
[1673868113840,1.92822522,1545.8,1545.7,27.59103817]
[1673868114987,2.89294815,1545.8,1545.7,27.59103817]
[1673868115304,2.89294815,1545.8,1545.7,24.31825139]
[1673868115476,1.92822522,1545.8,1545.7,24.31825139]
[1673868119575,1.92822522,1545.8,1545.7,20.66168]
[1673868120302,0.96375967,1545.8,1545.7,20.66168]
[1673868120565,0.00412228,1546.0,1545.7,20.66168]
[1673868120757,1.45069916,1546.0,1545.8,1.259]
[1673868120927,1.45069916,1546.0,1545.9,6.46872]
[1673868121666,1.45069916,1546.0,1545.9,12.93744]
[1673868122084,1.90730954,1546.0,1545.9,12.93744]
[1673868123708,3.83656753,1546.0,1545.9,12.93744]
[1673868123871,1.90730954,1546.0,1545.9,12.93744]
[1673868124928,3.83638561,1546.0,1545.9,12.93744]
[1673868127157,2.38980873,1546.0,1545.9,12.93744]
[1673868128987,5.08985679,1546.0,1545.9,6.46872]
[1673868129289,5.08985679,1546.0,1545.8,14.19668]
[1673868129290,0.74827353,1546.0,1545.7,20.66744]
[1673868129460,1.44789219,1545.8,1545.7,20.66744]
[1673868130666,3.37841511,1545.8,1545.7,20.66744]
[1673868130966,1.44789219,1545.8,1545.7,20.66744]
[1673868133020,3.37841511,1545.8,1545.7,20.66744]
[1673868133226,1.44789219,1545.8,1545.7,20.66744]
[1673868134125,1.93052292,1545.8,1545.7,1.259]
[1673868134297,2.36489058,1545.8,1545.7,1.259]
[1673868135756,4.77804423,1545.8,1545.7,1.259]
[1673868136235,4.77804423,1545.8,1545.6,43.78104021]
[1673868136382,1.44917461,1545.7,1545.6,43.78104021]
[1673868136593,1.44917461,1545.7,1545.6,20.67074021]
[1673868137335,1.44917461,1545.7,1545.6,20.66332]
[1673868137677,2.50980804,1545.7,1545.6,7.72374]
[1673868138598,3.95862586,1545.7,1545.6,7.72374]
[1673868139235,2.50980804,1545.7,1545.6,7.72374]
[1673868139591,4.92296169,1545.7,1545.6,7.72374]
[1673868139994,2.50980804,1545.7,1545.6,7.72374]
[1673868141209,1.93052292,1545.7,1545.6,7.72374]
[1673868141419,1.93052292,1545.7,1545.6,14.19371]
[1673868141634,1.93052292,1545.7,1545.6,12.93971]
[1673868141889,3.37912872,1545.7,1545.6,12.93971]
[1673868142535,1.93052292,1545.7,1545.6,6.46974]
[1673868142688,2.36489058,1545.7,1545.6,6.46974]
[1673868144059,2.36489058,1545.7,1545.6,6.46769466]
[1673868146695,3.81302205,1545.7,1545.6,6.46769466]
[1673868146904,2.36489058,1545.7,1545.6,6.46769466]
[1673868149306,2.36489058,1545.7,1545.5,20.66944]
[1673868149518,2.41279693,1545.6,1545.5,19.41044]
[1673868150518,1.44767816,1545.6,1545.5,19.41044]
[1673868152038,1.44767816,1545.6,1545.4,24.21895873]
[1673868152039,2.55309516,1545.6,1545.4,29.43057873]
[1673868152253,2.41217408,1545.5,1545.4,29.43057873]
[1673868152566,1.44730445,1545.5,1545.4,6.60887873]
[1673868152982,0.96492821,1545.5,1545.4,6.60887873]
[1673868154274,1.46146099,1545.5,1545.4,0.13825873]
[1673868156453,2.90876544,1545.5,1545.4,0.13825873]
[1673868158166,0.96492821,1545.5,1545.4,21.86568873]
[1673868158681,2.41223266,1545.6,1545.4,21.86568873]
[1673868159272,0.96492821,1545.5,1545.4,21.86568873]
[1673868160067,0.96492821,1545.5,1545.4,19.55068873]
[1673868160277,0.96492821,1545.5,1545.4,13.07987873]
[1673868161692,0.96492821,1545.5,1545.4,19.55068873]
[1673868163356,2.41223266,1545.5,1545.4,19.55068873]
[1673868163759,0.96492821,1545.5,1545.4,19.55068873]
[1673868164405,1.44730445,1545.5,1545.4,19.55068873]
[1673868164620,2.41214734,1545.5,1545.4,19.55068873]
[1673868164793,1.44730445,1545.5,1545.4,19.55068873]
[1673868165012,2.41215441,1545.5,1545.4,19.55068873]
[1673868165213,1.44730445,1545.5,1545.4,13.07987873]
[1673868165423,1.44730445,1545.5,1545.4,6.60906873]
[1673868165648,1.78508719,1545.5,1545.4,6.60906873]
[1673868166259,1.78508719,1545.5,1545.4,0.13825873]
[1673868166470,1.78508719,1545.5,1545.4,0.13537944]
[1673868167099,1.78508719,1545.5,1545.4,6.60618944]
[1673868167731,1.44730445,1545.5,1545.4,13.07699944]
[1673868169056,2.41263336,1545.5,1545.4,19.54780944]
[1673868169242,0.96532891,1545.5,1545.4,19.54780944]
[1673868169788,2.41263336,1545.5,1545.4,19.54780944]
[1673868170023,1.44730445,1545.5,1545.4,19.54780944]
[1673868172597,3.37782737,1545.5,1545.4,19.54780944]
[1673868172777,1.44730445,1545.5,1545.4,19.54780944]
[1673868173885,3.37782737,1545.5,1545.4,19.54780944]
[1673868174080,1.44730445,1545.5,1545.4,19.54780944]
[1673868174289,3.37782737,1545.5,1545.4,19.54780944]
[1673868175336,4.40263139,1545.5,1545.4,19.54780944]
[1673868175680,2.95532694,1545.5,1545.4,13.07699944]
[1673868175894,5.36848059,1545.5,1545.4,13.07699944]
[1673868176124,3.43795767,1545.5,1545.4,13.07699944]
[1673868176266,5.37027088,1545.5,1545.4,13.07699944]
[1673868177645,2.95711723,1545.5,1545.4,13.07699944]
[1673868177852,1.93231321,1545.5,1545.4,13.07699944]
[1673868179978,4.34546686,1545.5,1545.4,13.07699944]
[1673868180469,1.93231321,1545.5,1545.4,13.07699944]
[1673868180921,2.41315365,1545.5,1545.4,6.60618944]
[1673868181135,4.3481514,1545.5,1545.4,6.60618944]
[1673868181312,5.22867246,1545.5,1545.4,6.60618944]
[1673868185651,3.29367471,1545.5,1545.4,6.60618944]
[1673868188157,4.34950289,1545.5,1545.4,13.07699944]
[1673868188986,4.34950289,1545.5,1545.4,6.60618944]
[1673868189240,4.34950289,1545.5,1545.4,6.60338206]
[1673868190471,4.34950289,1545.5,1545.4,13.07419206]
[1673868191525,1.93634924,1545.5,1545.4,19.54500206]
[1673868191716,1.93634924,1545.5,1545.4,23.12498882]
[1673868193185,3.38933385,1545.5,1545.4,23.12498882]
[1673868193623,1.93634924,1545.5,1545.4,23.12498882]
[1673868193834,3.38932765,1545.5,1545.4,23.12498882]
[1673868194867,3.3869918,1545.5,1545.4,23.12498882]
[1673868195539,1.45297841,1545.5,1545.4,23.12498882]
[1673868196811,1.45297841,1545.5,1545.4,16.65417882]
[1673868196963,1.45358658,1545.5,1545.4,19.54500206]
[1673868197180,1.4535937,1545.5,1545.4,19.54500206]
[1673868198339,6.87021285,1545.6,1545.4,19.54500206]
[1673868198792,1.45373467,1545.5,1545.4,19.54500206]
[1673868199008,6.87021285,1545.6,1545.4,19.54500206]
[1673868201683,7.84697832,1545.6,1545.4,13.07419206]
[1673868203007,1.93840455,1545.5,1545.4,13.07419206]
[1673868203448,4.3515582,1545.5,1545.4,13.07419206]
[1673868203621,2.41315365,1545.5,1545.4,6.60338206]
[1673868205881,4.3512153,1545.5,1545.4,6.60338206]
[1673868206261,2.41315365,1545.5,1545.4,6.60338206]
[1673868206503,4.35104684,1545.5,1545.4,6.60338206]
[1673868206714,2.41315365,1545.5,1545.4,6.60338206]
[1673868207463,3.19785148,1545.5,1545.4,0.13257206]
[1673868209010,1.93753694,1545.5,1545.4,20.60100206]
[1673868210398,3.39014578,1545.5,1545.4,20.60100206]
[1673868215043,1.93753694,1545.5,1545.4,19.54500206]
[1673868215263,1.93753694,1545.5,1545.4,19.54276946]
[1673868215634,4.35069059,1545.5,1545.4,19.54276946]
[1673868216370,2.41315365,1545.5,1545.4,19.54276946]
[1673868216580,4.34993835,1545.5,1545.4,19.54276946]
[1673868218942,5.2306381,1545.5,1545.4,13.07195946]
[1673868220398,5.23044959,1545.5,1545.4,13.07195946]
[1673868220724,3.2938534,1545.5,1545.4,6.60114946]
[1673868221518,3.2938534,1545.5,1545.4,0.13033946]
[1673868221770,0.88069975,1545.5,1545.4,0.13033946]
[1673868221980,3.30127634,1545.5,1545.4,0.13033946]
[1673868222408,3.30127634,1545.5,1545.4,6.60114946]
[1673868225616,3.30127634,1545.5,1545.4,13.07195946]
[1673868228455,3.30127634,1545.5,1545.4,0.13033946]
[1673868229338,3.30127634,1545.5,1545.3,12.94270915]
[1673868229531,1.93688463,1545.4,1545.3,12.94270915]
[1673868229936,4.35746122,1545.4,1545.3,12.94270915]
[1673868231766,1.93688463,1545.4,1545.3,12.94270915]
[1673868232284,4.35746122,1545.4,1545.3,12.94270915]
[1673868232651,1.93688463,1545.4,1545.3,12.94270915]
[1673868232865,4.35746122,1545.4,1545.3,12.94270915]
[1673868233118,1.93688463,1545.4,1545.3,12.94270915]
[1673868233332,4.35746122,1545.4,1545.3,12.94270915]
[1673868233711,2.42057659,1545.4,1545.3,6.47164915]
[1673868233923,3.04003618,1545.4,1545.3,6.47164915]
[1673868235082,4.97655965,1545.4,1545.3,6.47164915]
[1673868237490,4.97617399,1545.4,1545.3,6.47164915]
[1673868238041,4.97617399,1545.4,1545.3,0.00074915]
[1673868238228,4.97617399,1545.4,1545.3,6.47159915]
[1673868238650,3.04003618,1545.4,1545.3,6.47159915]
[1673868238856,4.97608755,1545.4,1545.3,6.47159915]
[1673868239127,4.97594489,1545.4,1545.3,6.47159915]
[1673868239731,3.04003618,1545.4,1545.3,6.47159915]
[1673868241185,4.97593866,1545.4,1545.3,6.47159915]
[1673868241605,3.04003618,1545.4,1545.3,0.00074915]
[1673868244319,4.97510848,1545.4,1545.3,0.00074915]
[1673868245053,3.04003618,1545.4,1545.3,0.00074915]
[1673868245704,0.61945959,1545.4,1545.2,0.13700788]
[1673868245900,4.35327178,1545.3,1545.2,0.13700788]
[1673868246104,4.85054492,1545.3,1545.2,0.13700788]
[1673868246960,2.4320606,1545.3,1545.2,0.13700788]
[1673868249211,10.919945,1545.3,1545.2,0.13700788]
[1673868249517,14.49785542,1545.3,1545.2,0.13700788]
[1673868249893,10.44347046,1545.3,1545.2,0.13700788]
[1673868250098,14.90052966,1545.3,1545.2,0.13700788]
[1673868251722,14.89999374,1545.3,1545.2,0.13700788]
[1673868256733,10.36206762,1545.3,1545.2,0.13700788]
[1673868256958,6.8917585,1545.3,1545.2,0.13700788]
[1673868257172,6.39448536,1545.3,1545.2,0.13700788]
[1673868257769,6.39448536,1545.3,1545.2,6.60865788]
[1673868258454,7.84463355,1545.3,1545.2,6.60865788]
[1673868259151,6.39448536,1545.3,1545.2,6.60865788]
[1673868260495,7.84492892,1545.3,1545.2,6.60865788]
[1673868260665,6.39448536,1545.3,1545.2,6.60865788]
[1673868260823,7.33751077,1545.3,1545.2,6.60865788]
[1673868264144,8.78408142,1545.3,1545.2,13.08030788]
[1673868264365,6.39036308,1545.3,1545.2,13.08030788]
[1673868264662,7.84106573,1545.3,1545.2,13.08030788]
[1673868264820,6.39036308,1545.3,1545.2,13.08030788]
[1673868265477,7.84117463,1545.3,1545.2,13.08030788]
[1673868265811,7.84118513,1545.3,1545.2,13.08030788]
[1673868265984,6.39036308,1545.3,1545.2,13.08030788]
[1673868266193,7.84126442,1545.3,1545.2,13.08030788]
[1673868266649,7.84126442,1545.3,1545.2,19.54966268]
[1673868266650,5.90796054,1545.3,1545.2,19.54966268]
[1673868266858,5.90796054,1545.3,1545.2,22.78774392]
[1673868266859,5.42437969,1545.3,1545.2,22.78774392]
[1673868267050,6.87528103,1545.3,1545.2,22.78774392]
[1673868267262,5.42437969,1545.3,1545.2,22.78774392]
[1673868268515,6.87528103,1545.3,1545.2,22.78774392]
[1673868269597,5.90796054,1545.3,1545.2,22.78774392]
[1673868271454,5.90796054,1545.3,1545.2,19.54966268]
[1673868272644,6.87580436,1545.3,1545.2,19.54966268]
[1673868273042,6.87583111,1545.3,1545.2,19.54966268]
[1673868273679,5.90796054,1545.3,1545.2,19.54966268]
[1673868275340,6.87583325,1545.3,1545.2,19.54966268]
[1673868275561,5.90796054,1545.3,1545.2,13.07801268]
[1673868276350,5.90796054,1545.3,1545.2,19.54966268]
[1673868276800,6.87590087,1545.3,1545.2,19.54966268]
[1673868276937,6.87590087,1545.3,1545.2,22.16755675]
[1673868278139,4.4570592,1545.3,1545.2,27.95234353]
[1673868278308,4.4570592,1545.3,1545.2,28.18234353]
[1673868281343,4.4570592,1545.3,1545.2,29.78836566]
[1673868281553,4.4570592,1545.3,1545.2,29.8096658]
[1673868281796,4.4570592,1545.3,1545.2,34.75305953]
[1673868282012,4.4570592,1545.3,1545.2,33.56864286]
[1673868282860,4.4570592,1545.3,1545.2,31.96264367]
[1673868285053,4.4570592,1545.3,1545.2,33.5686147]
[1673868285717,4.4570592,1545.3,1545.2,31.96264367]
[1673868288551,4.4570592,1545.3,1545.2,31.96064367]
[1673868292603,4.4570592,1545.3,1545.2,22.07996282]
[1673868292812,4.4570592,1545.3,1545.2,20.80966268]
[1673868293667,4.45360397,1545.3,1545.2,20.80966268]
[1673868295723,5.4215443,1545.3,1545.2,20.80966268]
[1673868296715,5.90450531,1545.3,1545.2,0.13471268]
[1673868297033,7.41231968,1545.3,1545.2,0.13471268]
[1673868297575,9.8286288,1545.3,1545.2,0.13471268]
[1673868297790,7.41231968,1545.3,1545.2,0.13471268]
[1673868298118,9.8286288,1545.3,1545.2,0.13471268]
[1673868298322,7.41231968,1545.3,1545.2,0.13471268]
[1673868299329,8.86263451,1545.3,1545.2,0.13471268]
[1673868299540,6.92933063,1545.3,1545.2,6.60636268]
[1673868300376,6.92933063,1545.3,1545.2,13.07801268]
[1673868301470,5.9039188,1545.3,1545.2,19.54966268]
[1673868302120,6.87095115,1545.3,1545.2,19.54966268]
[1673868302323,6.02839936,1545.3,1545.2,19.54966268]
[1673868309774,7.47871419,1545.3,1545.2,19.54966268]
[1673868309985,6.51168184,1545.3,1545.2,19.54966268]
[1673868310373,6.51168184,1545.3,1545.2,13.07801268]
[1673868316188,6.51168184,1545.3,1545.2,13.07473187]
[1673868316763,7.4787376,1545.3,1545.2,13.07473187]
[1673868317029,6.51168184,1545.3,1545.2,13.07473187]
[1673868317633,7.47875683,1545.3,1545.2,13.07473187]
[1673868318343,7.47890613,1545.3,1545.2,13.07473187]
[1673868318661,7.47894606,1545.3,1545.2,13.07473187]
[1673868320136,8.42017105,1545.3,1545.2,13.07473187]
[1673868321421,7.45290683,1545.3,1545.2,13.07473187]
[1673868321646,7.45290683,1545.3,1545.2,6.60308187]
[1673868321841,9.38719854,1545.3,1545.2,0.13143187]
[1673868322049,7.93589588,1545.3,1545.2,0.13143187]
[1673868322283,10.352205,1545.3,1545.2,0.13143187]
[1673868322840,7.93589588,1545.3,1545.2,0.13143187]
[1673868323711,10.352205,1545.3,1545.2,0.13143187]
[1673868325030,7.93589588,1545.3,1545.2,0.13143187]
[1673868326166,10.352205,1545.3,1545.2,0.13143187]
[1673868326593,16.823435,1545.3,1545.2,0.13143187]
[1673868326972,8.41890112,1545.3,1545.2,0.13143187]
[1673868327303,8.41890112,1545.3,1545.2,0.11426675]
[1673868328890,15.74660878,1545.3,1545.2,0.11426675]
[1673868329100,15.74660878,1545.3,1545.2,0.06625555]
[1673868329101,37.8232032,1545.3,1545.2,0.06625555]
[1673868329449,32.96284226,1545.3,1545.2,0.06625555]
[1673868329816,30.06952268,1545.3,1545.2,0.06625555]
[1673868330238,30.55532268,1545.3,1545.2,0.06625555]
[1673868330755,33.45801351,1545.3,1545.2,0.06625555]
[1673868330970,30.55532268,1545.3,1545.2,0.06625555]
[1673868331509,33.45807616,1545.3,1545.2,0.06625555]
[1673868331743,30.55532268,1545.3,1545.2,0.06625555]
[1673868332114,35.55532268,1545.3,1545.2,0.06625555]
[1673868332807,38.45804945,1545.3,1545.2,0.06625555]
[1673868338122,33.45804945,1545.3,1545.2,0.06625555]
[1673868339082,38.45804945,1545.3,1545.2,0.01625555]
[1673868339309,38.45804945,1545.3,1545.2,0.00943821]
[1673868339857,4.44416576,1545.2,1545.1,0.15755801]
[1673868340011,33.5148768,1545.2,1545.1,0.15755801]
[1673868340222,33.51487919,1545.2,1545.1,0.15755801]
[1673868340552,31.09721756,1545.2,1545.1,0.15755801]
[1673868341213,31.65126133,1545.2,1545.1,0.15755801]
[1673868342322,31.65126133,1545.2,1545.1,0.04234557]
[1673868345303,32.91126133,1545.2,1545.1,0.04234557]
[1673868345631,35.8139881,1545.2,1545.1,0.04234557]
[1673868345948,36.46032728,1545.2,1545.1,0.04234557]
[1673868346762,41.94612728,1545.2,1545.1,0.04234557]
[1673868347185,44.94612728,1545.2,1545.1,0.04234557]
[1673868349551,44.94612728,1545.2,1545.1,0.02408366]
[1673868350117,44.2997881,1545.2,1545.1,0.02408366]
[1673868350385,44.94612728,1545.2,1545.1,0.02408366]
[1673868351338,49.92694212,1545.2,1545.1,0.02408366]
[1673868351487,49.92694212,1545.2,1545.0,0.73462625]
[1673868351488,53.13400602,1545.2,1545.0,0.73462625]
[1673868351698,47.01808301,1545.1,1545.0,0.73462625]
[1673868351941,66.43429301,1545.1,1545.0,0.73462625]
[1673868352308,67.31475447,1545.1,1545.0,0.73462625]
[1673868352586,74.58765447,1545.1,1545.0,0.73462625]
[1673868352970,77.95544514,1545.1,1545.0,0.73462625]
[1673868353184,74.58765447,1545.1,1545.0,0.73462625]
[1673868353371,4.31445986,1545.0,1544.9,0.16968267]
[1673868353586,4.31445986,1545.0,1544.4,0.18069353]
[1673868353587,0.169,1544.9,1544.4,0.18069353]
[1673868353797,10.63144549,1544.6,1544.4,0.18069353]
[1673868354063,44.17452378,1544.6,1544.4,0.18069353]
[1673868354215,51.72831686,1544.6,1544.4,0.18069353]
[1673868354592,51.72831686,1544.6,1544.5,0.00092749]
[1673868354593,57.00591553,1544.6,1544.5,0.00092749]
[1673868354905,56.51788716,1544.6,1544.5,0.00092749]
[1673868355063,62.00388716,1544.6,1544.5,0.00092749]
[1673868355271,74.96314416,1544.6,1544.5,0.00092749]
[1673868355481,64.07246663,1544.6,1544.5,0.00092749]
[1673868355729,75.45117253,1544.6,1544.5,0.00092749]
[1673868356434,72.07246663,1544.6,1544.5,0.00092749]
[1673868356652,75.44481558,1544.6,1544.5,0.00092749]
[1673868357004,67.11320963,1544.6,1544.5,0.00092749]
[1673868357383,2.5,1544.3,1544.0,1.02807324]
[1673868357582,18.88005937,1544.2,1544.0,1.02807324]
[1673868357790,3.27278678,1544.1,1544.0,1.02807324]
[1673868358527,10.71109582,1544.1,1544.0,1.02807324]
[1673868358737,9.74904678,1544.1,1544.0,1.02807324]
[1673868361094,9.75316906,1544.1,1544.0,1.02807324]
[1673868361416,12.14490587,1544.1,1544.0,1.02807324]
[1673868362356,9.75316906,1544.1,1544.0,1.02807324]
[1673868363568,16.22942906,1544.1,1544.0,1.02807324]
[1673868365269,19.22942906,1544.1,1544.0,1.02807324]
[1673868365584,22.58401728,1544.1,1544.0,0.44999626]
[1673868365796,37.92924304,1544.1,1544.0,0.44999626]
[1673868366017,43.53976097,1544.1,1544.0,0.11895415]
[1673868366363,9.287,1544.0,1543.7,0.00019724]
[1673868366511,20.39154386,1543.8,1543.7,0.00019724]
[1673868366724,34.53465813,1543.8,1543.7,0.00019724]
[1673868366948,39.38628102,1543.8,1543.7,0.00019724]
[1673868367394,39.45201345,1543.8,1543.7,0.00019724]
[1673868368234,46.23901345,1543.8,1543.7,0.00019724]
[1673868368610,49.10112415,1543.8,1543.7,0.00019724]
[1673868369066,40.41099731,1543.8,1543.7,0.00019724]
[1673868369501,39.45201345,1543.8,1543.7,0.00019724]
[1673868370111,39.45613573,1543.8,1543.7,0.00019724]
[1673868370327,37.96613573,1543.8,1543.7,0.00019724]
[1673868370539,35.46613573,1543.8,1543.7,0.00019724]
[1673868372391,6.48059276,1543.5,1543.3,1.252]
[1673868373079,6.48059276,1543.5,1543.3,1.152]
[1673868374130,0.00180276,1543.5,1543.4,24.2804]
[1673868374312,6.4761,1544.2,1543.5,2.5]
[1673868374503,6.47714,1543.9,1543.3,6.47962]
[1673868374721,3.27278678,1543.8,1543.2,7.89421724]
[1673868374948,3.27278678,1543.7,1543.2,7.89421724]
[1673868375164,3.27278678,1543.7,1543.4,1.26]
[1673868375353,6.4776,1543.8,1543.4,1.26]
[1673868375560,3.27278678,1543.8,1543.5,1.255]
[1673868375802,11.42170746,1543.8,1543.5,1.255]
[1673868376128,11.42170746,1543.8,1543.6,1.26]
[1673868376343,11.42170746,1543.8,1543.6,1.16]
[1673868377124,3.0,1543.7,1543.6,1.16]
[1673868377558,3.0,1543.7,1543.3,12.95873]
[1673868377559,9.47794,1543.7,1543.3,12.95873]
[1673868377781,33.87500596,1543.7,1543.3,7.73534]
[1673868377981,3.76320906,1543.6,1543.2,1.41419724]
[1673868378244,12.95772,1543.5,1543.2,1.41419724]
[1673868379183,16.23050678,1543.5,1543.2,1.41419724]
[1673868379395,22.70936678,1543.5,1543.2,1.41419724]
[1673868379609,23.47794,1543.7,1543.2,2.72896696]
[1673868379766,17.0,1543.7,1543.4,1.251]
[1673868379982,3.0,1543.7,1543.6,2.513]
[1673868380233,3.0,1543.8,1543.6,2.513]
[1673868380398,5.0,1543.7,1543.6,1.253]
[1673868380606,8.0,1543.7,1543.6,1.253]
[1673868381708,3.0,1543.7,1543.6,1.253]
[1673868382099,14.0,1543.8,1543.6,2.513]
[1673868382312,3.0,1543.7,1543.6,1.253]
[1673868382564,3.0,1543.7,1543.6,2.513]
[1673868383651,0.647612,1544.1,1543.6,21.94808]
[1673868383915,25.01098605,1544.3,1544.0,2.513]
[1673868384104,19.67504351,1544.4,1544.1,1.255]
[1673868384105,13.90962386,1544.4,1544.1,1.255]
[1673868384322,0.4861,1544.3,1544.1,0.51617929]
[1673868384949,5.0,1544.2,1544.1,0.51617929]
[1673868385809,1.44508386,1544.3,1544.1,0.51617929]
[1673868385961,3.4861,1544.3,1544.1,0.51617929]
[1673868386332,3.4861,1544.3,1544.2,1.26]
[1673868386645,4.57813239,1544.3,1544.2,1.26]
[1673868387027,4.57813239,1544.3,1543.9,1.252]
[1673868387028,0.93949546,1544.1,1543.9,1.252]
[1673868387236,0.93949546,1544.1,1543.8,7.72734]
[1673868387237,7.41579546,1544.1,1543.8,7.72734]
[1673868387433,3.0,1544.0,1543.8,1.253]
[1673868387642,4.13746097,1544.0,1543.8,1.253]
[1673868388481,17.09090097,1544.0,1543.8,1.253]
[1673868388984,10.61418097,1544.0,1543.8,1.253]
[1673868389605,11.57299516,1544.0,1543.8,1.253]
[1673868389828,10.61418097,1544.0,1543.8,1.253]
[1673868390149,9.47672,1544.0,1543.8,1.253]
[1673868390886,10.43553419,1544.0,1543.8,1.253]
[1673868391500,11.87400998,1544.0,1543.8,1.253]
[1673868392320,0.95881419,1543.9,1543.8,1.253]
[1673868392765,1.43847579,1543.9,1543.8,1.253]
[1673868393096,3.6099874,1543.9,1543.8,1.253]
[1673868393305,10.0870874,1543.9,1543.8,1.253]
[1673868393521,10.0870874,1543.9,1543.7,12.7065]
[1673868393522,18.48215512,1543.9,1543.7,12.7065]
[1673868393691,0.96329827,1543.8,1543.7,12.7065]
[1673868394235,7.44081827,1543.8,1543.7,12.7065]
[1673868394408,10.03311561,1543.8,1543.7,12.7065]
[1673868394619,11.4715914,1543.8,1543.7,12.7065]
[1673868394846,10.50829313,1543.8,1543.7,12.7065]
[1673868395036,10.50829313,1543.8,1543.7,1.252]
[1673868395458,29.35206993,1543.8,1543.6,1.253]
[1673868395667,7.90039454,1543.7,1543.4,14.48161]
[1673868395937,21.84389334,1543.6,1543.3,13.0765]
[1673868396120,3.08736492,1543.5,1543.3,13.0765]
[1673868396455,1.39645149,1543.6,1543.4,1.252]
[1673868396667,0.96351583,1543.6,1543.4,7.73113]
[1673868396821,0.96351583,1543.6,1543.4,7.98813]
[1673868398097,0.96351583,1543.5,1543.4,1.509]
[1673868398666,2.40881334,1543.6,1543.4,7.9882]
[1673868398873,0.96351583,1543.6,1543.5,1.494]
[1673868399028,0.96351583,1543.6,1543.5,7.97278]
[1673868399480,0.96351583,1543.6,1543.5,14.45156]
[1673868400388,0.96351583,1543.6,1543.5,7.97278]
[1673868402286,0.96351583,1543.6,1543.5,1.494]
[1673868403053,5.40881334,1543.7,1543.5,20.98278]
[1673868403479,0.96351583,1543.6,1543.5,20.98278]
[1673868404214,4.44529751,1543.7,1543.5,38.843403]
[1673868404215,0.96351583,1543.7,1543.5,38.843403]
[1673868404421,0.96351583,1543.7,1543.6,1.507]
[1673868404612,0.96351583,1543.7,1543.6,7.98536]
[1673868405177,0.96351583,1543.7,1543.6,25.71486678]
[1673868405395,1.44529751,1543.8,1543.6,30.57463776]
[1673868405396,0.96351583,1543.8,1543.6,30.57463776]
[1673868405543,0.96351583,1543.8,1543.7,3.017]
[1673868405911,0.96351583,1543.8,1543.7,22.45082]
[1673868406069,2.40881334,1543.9,1543.7,22.45082]
[1673868406282,2.40881334,1543.8,1543.7,19.43382]
[1673868406551,2.40881334,1543.8,1543.7,25.85629378]
[1673868406911,0.96351583,1543.8,1543.7,25.85629378]
[1673868407119,0.96351583,1543.8,1543.7,17.86935378]
[1673868407344,0.96351583,1543.8,1543.7,14.46488]
[1673868407870,1.44529751,1543.8,1543.7,14.46488]
[1673868408506,1.44529751,1543.8,1543.7,1.509]
[1673868409369,1.91796772,1543.8,1543.7,1.509]
[1673868409537,2.35027675,1543.8,1543.7,1.509]
[1673868409886,2.35027675,1543.8,1543.7,0.97729944]
[1673868410233,4.75539934,1543.8,1543.7,0.97729944]
[1673868411237,4.75539934,1543.8,1543.5,13.01]
[1673868411238,31.62395581,1543.8,1543.5,13.01]
[1673868411596,11.36446317,1543.6,1543.5,13.01]
[1673868411753,13.93502749,1543.6,1543.5,13.01]
[1673868411961,14.5241186,1543.6,1543.5,13.01]
[1673868412395,16.93502749,1543.6,1543.5,13.01]
[1673868413045,14.5241186,1543.6,1543.5,13.01]
[1673868413783,7.5594586,1543.6,1543.5,13.01]
[1673868415039,7.5594586,1543.6,1543.5,14.519]
[1673868415040,3.92172781,1543.6,1543.5,14.519]
[1673868415214,2.95740754,1543.6,1543.5,20.99778]
[1673868416007,1.51087401,1543.6,1543.5,20.99778]
[1673868416214,0.54646717,1543.6,1543.5,28.97056]
[1673868416365,0.54646717,1543.6,1543.5,38.994293]
[1673868416851,0.54646717,1543.6,1543.5,42.26707978]
[1673868417160,23.9930007,1543.6,1543.5,16.013]
[1673868417370,25.44367606,1543.6,1543.5,13.01]
[1673868417523,32.35452949,1543.6,1543.5,13.01]
[1673868417737,18.94406283,1543.6,1543.5,13.01]
[1673868418001,28.30856994,1543.6,1543.5,13.01]
[1673868418307,33.30856994,1543.6,1543.5,13.01]
[1673868418523,38.68722093,1543.6,1543.5,13.01]